[Event "Titled Tuesday Blitz June 20 Early 2023"]
[White "Parpiev, Isaak"]
[Black "KorolDimitriy75"]
[WhiteFideId "34281576"]
[WhiteElo "2167"]
[BlackElo "2422"]
[Result "0-1"]
[Round "3"]
[TimeControl "180+2"]
[Date "2023.06.20"]
[WhiteClock "0:00:01"]
[BlackClock "0:00:30"]
[Board "133"]

1. Nf3 {[%clk 0:02:53]}  c5 {[%clk 0:03:00]} 2. e4 {[%clk 0:02:51]}  d6 {[%clk 0:02:59]} 3. d4 {[%clk 0:02:51]}  cxd4 {[%clk 0:03:00]} 4. Nxd4 {[%clk 0:02:52]}  Nf6 {[%clk 0:03:00]} 5. Nc3 {[%clk 0:02:52]}  g6 {[%clk 0:03:01]} 6. Be3 {[%clk 0:02:52]}  Bg7 {[%clk 0:03:02]} 7. f3 {[%clk 0:02:52]}  O-O {[%clk 0:03:02]} 8. Qd2 {[%clk 0:02:53]}  Nc6 {[%clk 0:03:02]} 9. O-O-O {[%clk 0:02:53]}  d5 {[%clk 0:03:03]} 10. exd5 {[%clk 0:02:52]}  Nxd5 {[%clk 0:03:04]} 11. Nxc6 {[%clk 0:02:53]}  bxc6 {[%clk 0:03:04]} 12. Bd4 {[%clk 0:02:53]}  e5 {[%clk 0:03:04]} 13. Bc5 {[%clk 0:02:53]}  Be6 {[%clk 0:03:04]} 14. Ne4 {[%clk 0:02:53]}  Rb8 {[%clk 0:03:04]} 15. h4 {[%clk 0:02:51]}  f5 {[%clk 0:03:03]} 16. Ng5 {[%clk 0:02:51]}  e4 {[%clk 0:03:03]} 17. c3 {[%clk 0:02:43]}  Qa5 {[%clk 0:03:02]} 18. Nxe6 {[%clk 0:02:29]}  Qxa2 {[%clk 0:02:59]} 19. Qc2 {[%clk 0:02:17]}  Rfd8 {[%clk 0:02:58]} 20. Bc4 {[%clk 0:00:48]}  Bh6+ {[%clk 0:02:26]} 21. Ng5 {[%clk 0:00:23]}  Qxc4 {[%clk 0:02:22]} 22. Bd4 {[%clk 0:00:23]}  c5 {[%clk 0:01:05]} 23. fxe4 {[%clk 0:00:18]}  cxd4 {[%clk 0:01:00]} 24. exd5 {[%clk 0:00:18]}  Rxd5 {[%clk 0:00:51]} 25. Rxd4 {[%clk 0:00:16]}  Rxd4 {[%clk 0:00:50]} 26. cxd4 {[%clk 0:00:17]}  Qxd4 {[%clk 0:00:49]} 27. Rd1 {[%clk 0:00:13]}  Qxh4 {[%clk 0:00:44]} 28. Qc7 {[%clk 0:00:02]}  Qxg5+ {[%clk 0:00:40]} 29. Kb1 {[%clk 0:00:01]}  Rf8 {[%clk 0:00:37]} 30. Qc4+ {[%clk 0:00:01]}  Kh8 {[%clk 0:00:37]} 31. Qd4+ {[%clk 0:00:02]}  Bg7 {[%clk 0:00:36]} 32. Qxa7 {[%clk 0:00:02]}  Qf6 {[%clk 0:00:36]} 33. Qb7 {[%clk 0:00:02]}  h5 {[%clk 0:00:34]} 34. g3 {[%clk 0:00:02]}  Rf7 {[%clk 0:00:34]} 35. Qb8+ {[%clk 0:00:01]}  Kh7 {[%clk 0:00:34]} 36. Qb3 {[%clk 0:00:02]}  Rc7 {[%clk 0:00:33]} 37. Rd2 {[%clk 0:00:02]}  Qe5 {[%clk 0:00:32]} 38. Qb4 {[%clk 0:00:01]}  Qe4+ {[%clk 0:00:30]} 39. Ka2 {[%clk 0:00:01]}  Qxb4 {[%clk 0:00:30]} 0-1


[Site "https://www.chess.com"]

[Event "Titled Tuesday Blitz June 20 Early 2023"]
[White "Rangel, Daniel"]
[Black "Subelj, Jan"]
[WhiteFideId "2124475"]
[BlackFideId "14618583"]
[WhiteElo "2231"]
[BlackElo "2499"]
[Result "0-1"]
[Round "3"]
[TimeControl "180+2"]
[Date "2023.06.20"]
[WhiteClock "0:00:00"]
[BlackClock "0:00:36"]
[Board "134"]

1. d4 {[%clk 0:03:00]}  c6 {[%clk 0:03:00]} 2. c4 {[%clk 0:03:00]}  d5 {[%clk 0:03:01]} 3. Nc3 {[%clk 0:03:00]}  Nf6 {[%clk 0:03:02]} 4. cxd5 {[%clk 0:02:59]}  cxd5 {[%clk 0:03:03]} 5. Bg5 {[%clk 0:02:59]}  Ne4 {[%clk 0:03:00]} 6. Nxe4 {[%clk 0:02:58]}  dxe4 {[%clk 0:03:01]} 7. Be3 {[%clk 0:02:54]}  e6 {[%clk 0:02:56]} 8. a3 {[%clk 0:02:52]}  Nc6 {[%clk 0:02:43]} 9. g3 {[%clk 0:02:51]}  g6 {[%clk 0:02:38]} 10. Bg2 {[%clk 0:02:50]}  f5 {[%clk 0:02:37]} 11. Qd2 {[%clk 0:02:40]}  Bg7 {[%clk 0:02:30]} 12. Rd1 {[%clk 0:02:40]}  O-O {[%clk 0:02:30]} 13. h4 {[%clk 0:02:39]}  b6 {[%clk 0:02:28]} 14. h5 {[%clk 0:02:36]}  Rf7 {[%clk 0:02:25]} 15. hxg6 {[%clk 0:02:35]}  hxg6 {[%clk 0:02:26]} 16. Nh3 {[%clk 0:02:34]}  Na5 {[%clk 0:02:17]} 17. Bg5 {[%clk 0:02:27]}  Qd6 {[%clk 0:02:12]} 18. Nf4 {[%clk 0:02:06]}  Nb3 {[%clk 0:01:54]} 19. Qc3 {[%clk 0:01:55]}  Nxd4 {[%clk 0:01:49]} 20. Nxg6 {[%clk 0:00:39]}  e5 {[%clk 0:01:34]} 21. Nh4 {[%clk 0:00:31]}  Rc7 {[%clk 0:01:26]} 22. Qd2 {[%clk 0:00:30]}  Ba6 {[%clk 0:01:02]} 23. O-O {[%clk 0:00:18]}  Qe6 {[%clk 0:00:58]} 24. Rfe1 {[%clk 0:00:16]}  Rc2 {[%clk 0:00:53]} 25. Qe3 {[%clk 0:00:08]}  Nxe2+ {[%clk 0:00:49]} 26. Rxe2 {[%clk 0:00:08]}  Rxe2 {[%clk 0:00:49]} 27. Qc3 {[%clk 0:00:07]}  Rc8 {[%clk 0:00:47]} 28. Qb4 {[%clk 0:00:06]}  Bf8 {[%clk 0:00:46]} 29. Qa4 {[%clk 0:00:06]}  b5 {[%clk 0:00:45]} 30. Qa5 {[%clk 0:00:06]}  Bc5 {[%clk 0:00:43]} 31. Rf1 {[%clk 0:00:06]}  Qb6 {[%clk 0:00:40]} 32. Qxb6 {[%clk 0:00:05]}  axb6 {[%clk 0:00:38]} 33. Nxf5 {[%clk 0:00:06]}  Bb7 {[%clk 0:00:38]} 34. Bh3 {[%clk 0:00:05]}  Rf8 {[%clk 0:00:37]} 35. Nh6+ {[%clk 0:00:04]}  Kg7 {[%clk 0:00:37]} 36. Be6 {[%clk 0:00:00]}  Rfxf2 {[%clk 0:00:36]} 0-1


[Site "https://www.chess.com"]

[Event "Titled Tuesday Blitz June 20 Early 2023"]
[White "Bauman_Guy"]
[Black "Buchenau, Frank"]
[BlackFideId "4604350"]
[WhiteElo "2567"]
[BlackElo "2157"]
[Result "1-0"]
[Round "3"]
[TimeControl "180+2"]
[Date "2023.06.20"]
[WhiteClock "0:01:10"]
[BlackClock "0:00:10"]
[Board "136"]

1. e4 {[%clk 0:03:00]}  e6 {[%clk 0:02:59]} 2. d4 {[%clk 0:03:00]}  d5 {[%clk 0:02:59]} 3. Nc3 {[%clk 0:03:00]}  Nf6 {[%clk 0:03:00]} 4. e5 {[%clk 0:03:00]}  Nfd7 {[%clk 0:03:00]} 5. Nce2 {[%clk 0:03:00]}  c5 {[%clk 0:03:00]} 6. c3 {[%clk 0:03:00]}  Nc6 {[%clk 0:03:00]} 7. Nf3 {[%clk 0:03:00]}  Be7 {[%clk 0:02:59]} 8. a3 {[%clk 0:03:00]}  b5 {[%clk 0:02:53]} 9. Nf4 {[%clk 0:02:59]}  Rb8 {[%clk 0:02:45]} 10. h4 {[%clk 0:02:59]}  a5 {[%clk 0:02:43]} 11. Bd3 {[%clk 0:02:58]}  b4 {[%clk 0:02:40]} 12. axb4 {[%clk 0:02:59]}  axb4 {[%clk 0:02:40]} 13. g3 {[%clk 0:02:56]}  bxc3 {[%clk 0:02:39]} 14. bxc3 {[%clk 0:02:56]}  cxd4 {[%clk 0:02:35]} 15. cxd4 {[%clk 0:02:57]}  Nb4 {[%clk 0:02:30]} 16. Be2 {[%clk 0:02:44]}  Qc7 {[%clk 0:02:26]} 17. Kf1 {[%clk 0:02:44]}  Qc2 {[%clk 0:02:24]} 18. Bd2 {[%clk 0:02:38]}  Qxd1+ {[%clk 0:02:22]} 19. Bxd1 {[%clk 0:02:39]}  Ba6+ {[%clk 0:02:19]} 20. Kg2 {[%clk 0:02:39]}  Bc4 {[%clk 0:02:15]} 21. Bxb4 {[%clk 0:02:31]}  Bxb4 {[%clk 0:02:13]} 22. Ra7 {[%clk 0:02:31]}  Nb6 {[%clk 0:02:02]} 23. Ng5 {[%clk 0:02:22]}  O-O {[%clk 0:02:00]} 24. Bh5 {[%clk 0:02:09]}  g6 {[%clk 0:01:59]} 25. Bg4 {[%clk 0:02:09]}  Ra8 {[%clk 0:01:57]} 26. Rha1 {[%clk 0:02:07]}  Bc3 {[%clk 0:01:56]} 27. Rxa8 {[%clk 0:02:03]}  Rxa8 {[%clk 0:01:55]} 28. Rb1 {[%clk 0:02:04]}  Rb8 {[%clk 0:01:42]} 29. Nf3 {[%clk 0:01:52]}  Nd7 {[%clk 0:01:36]} 30. Rc1 {[%clk 0:01:52]}  Bb2 {[%clk 0:01:25]} 31. Rc2 {[%clk 0:01:51]}  Ba3 {[%clk 0:01:21]} 32. Nd2 {[%clk 0:01:37]}  Nb6 {[%clk 0:01:06]} 33. Nxc4 {[%clk 0:01:32]}  Nxc4 {[%clk 0:01:05]} 34. Nxe6 {[%clk 0:01:32]}  fxe6 {[%clk 0:01:04]} 35. Bxe6+ {[%clk 0:01:32]}  Kf8 {[%clk 0:00:58]} 36. Bxd5 {[%clk 0:01:31]}  Nb6 {[%clk 0:00:55]} 37. Be4 {[%clk 0:01:31]}  Rd8 {[%clk 0:00:52]} 38. f4 {[%clk 0:01:20]}  Rxd4 {[%clk 0:00:49]} 39. Kf3 {[%clk 0:01:20]}  Nc4 {[%clk 0:00:45]} 40. Bb7 {[%clk 0:01:16]}  h5 {[%clk 0:00:30]} 41. Ba6 {[%clk 0:01:15]}  Nb6 {[%clk 0:00:20]} 42. Rc6 {[%clk 0:01:14]}  Kf7 {[%clk 0:00:18]} 43. Rxb6 {[%clk 0:01:14]}  Bc1 {[%clk 0:00:15]} 44. Rf6+ {[%clk 0:01:13]}  Kg7 {[%clk 0:00:15]} 45. Bb7 {[%clk 0:01:10]}  Rb4 {[%clk 0:00:14]} 46. Be4 {[%clk 0:01:09]}  Rb3+ {[%clk 0:00:14]} 47. Kg2 {[%clk 0:01:10]}  Rb2+ {[%clk 0:00:10]} 48. Kh3 {[%clk 0:01:10]} 1-0


[Site "https://www.chess.com"]

[Event "Titled Tuesday Blitz June 20 Early 2023"]
[White "Fonseca Manrique, Enrique"]
[Black "Herzog2012"]
[WhiteFideId "5114330"]
[WhiteElo "2560"]
[BlackElo "2412"]
[Result "0-1"]
[Round "3"]
[TimeControl "180+2"]
[Date "2023.06.20"]
[WhiteClock "0:00:00"]
[BlackClock "0:00:05"]
[Board "138"]

1. e4 {[%clk 0:03:00]}  c5 {[%clk 0:03:00]} 2. Nc3 {[%clk 0:03:00]}  Nc6 {[%clk 0:03:00]} 3. f4 {[%clk 0:03:01]}  g6 {[%clk 0:03:00]} 4. Nf3 {[%clk 0:03:01]}  Bg7 {[%clk 0:03:01]} 5. a4 {[%clk 0:03:01]}  e6 {[%clk 0:03:00]} 6. e5 {[%clk 0:03:02]}  d6 {[%clk 0:02:54]} 7. Bb5 {[%clk 0:03:00]}  dxe5 {[%clk 0:02:40]} 8. fxe5 {[%clk 0:02:43]}  Bd7 {[%clk 0:02:37]} 9. Qe2 {[%clk 0:02:33]}  a6 {[%clk 0:02:21]} 10. Bxc6 {[%clk 0:02:16]}  Bxc6 {[%clk 0:02:22]} 11. O-O {[%clk 0:02:16]}  Ne7 {[%clk 0:02:15]} 12. d3 {[%clk 0:02:15]}  Nf5 {[%clk 0:02:15]} 13. Ne4 {[%clk 0:02:08]}  Bxe4 {[%clk 0:01:37]} 14. Qxe4 {[%clk 0:01:57]}  Qd5 {[%clk 0:01:35]} 15. Qxd5 {[%clk 0:01:25]}  exd5 {[%clk 0:01:36]} 16. b3 {[%clk 0:01:15]}  O-O {[%clk 0:01:29]} 17. Re1 {[%clk 0:01:09]}  Rfe8 {[%clk 0:01:27]} 18. Ba3 {[%clk 0:00:52]}  Rac8 {[%clk 0:01:03]} 19. Re2 {[%clk 0:00:52]}  b5 {[%clk 0:00:48]} 20. axb5 {[%clk 0:00:44]}  axb5 {[%clk 0:00:49]} 21. Bb2 {[%clk 0:00:42]}  d4 {[%clk 0:00:44]} 22. b4 {[%clk 0:00:31]}  cxb4 {[%clk 0:00:32]} 23. g4 {[%clk 0:00:30]}  Ne3 {[%clk 0:00:27]} 24. Nxd4 {[%clk 0:00:31]}  Nxg4 {[%clk 0:00:20]} 25. Nf3 {[%clk 0:00:31]}  f6 {[%clk 0:00:06]} 26. e6 {[%clk 0:00:29]}  Rc6 {[%clk 0:00:06]} 27. Nd4 {[%clk 0:00:23]}  Rd6 {[%clk 0:00:06]} 28. Nxb5 {[%clk 0:00:23]}  Rdxe6 {[%clk 0:00:05]} 29. Rxe6 {[%clk 0:00:19]}  Rxe6 {[%clk 0:00:06]} 30. Ra8+ {[%clk 0:00:19]}  Kf7 {[%clk 0:00:06]} 31. Ra7+ {[%clk 0:00:19]}  Re7 {[%clk 0:00:06]} 32. Rxe7+ {[%clk 0:00:15]}  Kxe7 {[%clk 0:00:06]} 33. Bc1 {[%clk 0:00:15]}  f5 {[%clk 0:00:05]} 34. Bd2 {[%clk 0:00:14]}  Kd7 {[%clk 0:00:04]} 35. Bxb4 {[%clk 0:00:15]}  Kc6 {[%clk 0:00:04]} 36. Nc3 {[%clk 0:00:15]}  Bxc3 {[%clk 0:00:03]} 37. Bxc3 {[%clk 0:00:15]}  Ne3 {[%clk 0:00:04]} 38. Kf2 {[%clk 0:00:15]}  Nxc2 {[%clk 0:00:04]} 39. Bg7 {[%clk 0:00:15]}  Kd5 {[%clk 0:00:04]} 40. Ke2 {[%clk 0:00:15]}  Nd4+ {[%clk 0:00:05]} 41. Ke3 {[%clk 0:00:15]}  Ne6 {[%clk 0:00:05]} 42. Bf6 {[%clk 0:00:15]}  g5 {[%clk 0:00:05]} 43. h3 {[%clk 0:00:15]}  h5 {[%clk 0:00:04]} 44. Be7 {[%clk 0:00:15]}  g4 {[%clk 0:00:04]} 45. hxg4 {[%clk 0:00:15]}  hxg4 {[%clk 0:00:05]} 46. Bf6 {[%clk 0:00:15]}  f4+ {[%clk 0:00:04]} 47. Ke2 {[%clk 0:00:15]}  Nc5 {[%clk 0:00:04]} 48. Bg7 {[%clk 0:00:13]}  Ke6 {[%clk 0:00:03]} 49. Bd4 {[%clk 0:00:13]}  Nd7 {[%clk 0:00:03]} 50. Bg7 {[%clk 0:00:13]}  Kf5 {[%clk 0:00:03]} 51. Bc3 {[%clk 0:00:05]}  Nf6 {[%clk 0:00:03]} 52. Ba5 {[%clk 0:00:06]}  Nd5 {[%clk 0:00:04]} 53. Bd2 {[%clk 0:00:05]}  Nf6 {[%clk 0:00:03]} 54. Ba5 {[%clk 0:00:03]}  Nd5 {[%clk 0:00:04]} 55. Bd2 {[%clk 0:00:04]}  Ke5 {[%clk 0:00:04]} 56. Bc1 {[%clk 0:00:03]}  Kf5 {[%clk 0:00:04]} 57. Bb2 {[%clk 0:00:03]}  f3+ {[%clk 0:00:05]} 58. Kf2 {[%clk 0:00:00]}  Nf4 {[%clk 0:00:05]} 0-1


[Site "https://www.chess.com"]

[Event "Titled Tuesday Blitz June 20 Early 2023"]
[White "Slavin, Alexey"]
[Black "Sebag, Marie"]
[WhiteFideId "24104388"]
[BlackFideId "617822"]
[WhiteElo "2264"]
[BlackElo "2431"]
[Result "0-1"]
[Round "3"]
[TimeControl "180+2"]
[Date "2023.06.20"]
[WhiteClock "0:00:15"]
[BlackClock "0:00:35"]
[Board "139"]

1. e4 {[%clk 0:02:59]}  e5 {[%clk 0:02:29]} 2. Nf3 {[%clk 0:02:58]}  Nc6 {[%clk 0:02:00]} 3. c3 {[%clk 0:02:58]}  Nf6 {[%clk 0:01:56]} 4. d4 {[%clk 0:02:57]}  d6 {[%clk 0:01:54]} 5. dxe5 {[%clk 0:02:56]}  Nxe5 {[%clk 0:01:52]} 6. Nxe5 {[%clk 0:02:56]}  dxe5 {[%clk 0:01:52]} 7. Qxd8+ {[%clk 0:02:56]}  Kxd8 {[%clk 0:01:52]} 8. Bg5 {[%clk 0:02:47]}  c6 {[%clk 0:01:52]} 9. Bc4 {[%clk 0:02:46]}  Kc7 {[%clk 0:01:50]} 10. Bxf7 {[%clk 0:02:45]}  Nxe4 {[%clk 0:01:49]} 11. Be3 {[%clk 0:02:44]}  Nd6 {[%clk 0:01:44]} 12. Bb3 {[%clk 0:02:44]}  Nf5 {[%clk 0:01:44]} 13. Bd2 {[%clk 0:02:25]}  Bc5 {[%clk 0:01:43]} 14. O-O {[%clk 0:02:24]}  Rf8 {[%clk 0:01:38]} 15. Bc2 {[%clk 0:02:18]}  Be6 {[%clk 0:01:36]} 16. a4 {[%clk 0:02:16]}  a5 {[%clk 0:01:30]} 17. Na3 {[%clk 0:02:13]}  Rf6 {[%clk 0:01:30]} 18. Rfe1 {[%clk 0:02:05]}  Raf8 {[%clk 0:01:16]} 19. Rxe5 {[%clk 0:01:37]}  Bd6 {[%clk 0:01:14]} 20. Re2 {[%clk 0:01:19]}  h6 {[%clk 0:00:52]} 21. Rae1 {[%clk 0:01:04]}  Bxa3 {[%clk 0:00:49]} 22. Rxe6 {[%clk 0:00:56]}  Bxb2 {[%clk 0:00:43]} 23. Rxf6 {[%clk 0:00:45]}  Rxf6 {[%clk 0:00:42]} 24. g3 {[%clk 0:00:39]}  Ba3 {[%clk 0:00:39]} 25. Kg2 {[%clk 0:00:36]}  Bc5 {[%clk 0:00:39]} 26. Re5 {[%clk 0:00:36]}  Nh4+ {[%clk 0:00:36]} 27. gxh4 {[%clk 0:00:35]}  Rxf2+ {[%clk 0:00:36]} 28. Kg3 {[%clk 0:00:33]}  Rxd2 {[%clk 0:00:36]} 29. Bf5 {[%clk 0:00:15]}  Bd6 {[%clk 0:00:35]} 0-1


[Site "https://www.chess.com"]

[Event "Titled Tuesday Blitz June 20 Early 2023"]
[White "Novikova, Galina"]
[Black "Shukhman, Anna"]
[WhiteFideId "4157095"]
[BlackFideId "54180058"]
[WhiteElo "1953"]
[BlackElo "2235"]
[Result "0-1"]
[Round "3"]
[TimeControl "180+2"]
[Date "2023.06.20"]
[WhiteClock "0:00:02"]
[BlackClock "0:00:27"]
[Board "140"]

1. e4 {[%clk 0:03:00]}  c5 {[%clk 0:02:59]} 2. Nf3 {[%clk 0:03:01]}  a6 {[%clk 0:02:58]} 3. b4 {[%clk 0:03:01]}  cxb4 {[%clk 0:02:55]} 4. a3 {[%clk 0:03:01]}  e6 {[%clk 0:02:55]} 5. axb4 {[%clk 0:03:01]}  Bxb4 {[%clk 0:02:55]} 6. c3 {[%clk 0:03:02]}  Be7 {[%clk 0:02:55]} 7. d4 {[%clk 0:03:03]}  Nf6 {[%clk 0:02:55]} 8. e5 {[%clk 0:03:03]}  Nd5 {[%clk 0:02:55]} 9. Bd3 {[%clk 0:03:04]}  d6 {[%clk 0:02:55]} 10. O-O {[%clk 0:03:03]}  dxe5 {[%clk 0:02:55]} 11. dxe5 {[%clk 0:03:04]}  Nc6 {[%clk 0:02:54]} 12. Bd2 {[%clk 0:02:58]}  Qc7 {[%clk 0:02:44]} 13. Qe2 {[%clk 0:02:56]}  Bd7 {[%clk 0:02:40]} 14. Na3 {[%clk 0:02:55]}  Rd8 {[%clk 0:02:34]} 15. Nc4 {[%clk 0:02:54]}  b5 {[%clk 0:02:34]} 16. Nb2 {[%clk 0:02:36]}  Bc8 {[%clk 0:02:29]} 17. Rfe1 {[%clk 0:02:24]}  O-O {[%clk 0:02:04]} 18. h4 {[%clk 0:02:20]}  Na5 {[%clk 0:01:55]} 19. Bg5 {[%clk 0:01:31]}  g6 {[%clk 0:01:34]} 20. Bxe7 {[%clk 0:01:27]}  Nxe7 {[%clk 0:01:33]} 21. h5 {[%clk 0:01:24]}  Nb3 {[%clk 0:01:32]} 22. Rad1 {[%clk 0:01:22]}  Qxc3 {[%clk 0:01:30]} 23. Ng5 {[%clk 0:01:10]}  Nd4 {[%clk 0:01:29]} 24. Qg4 {[%clk 0:01:02]}  Qxb2 {[%clk 0:01:23]} 25. Ne4 {[%clk 0:01:02]}  Nd5 {[%clk 0:01:12]} 26. Qg5 {[%clk 0:00:56]}  Nf5 {[%clk 0:01:04]} 27. Nf6+ {[%clk 0:00:53]}  Nxf6 {[%clk 0:01:02]} 28. exf6 {[%clk 0:00:54]}  Qc3 {[%clk 0:00:47]} 29. Bxf5 {[%clk 0:00:51]}  exf5 {[%clk 0:00:42]} 30. hxg6 {[%clk 0:00:46]}  fxg6 {[%clk 0:00:38]} 31. Rxd8 {[%clk 0:00:11]}  Qxe1+ {[%clk 0:00:36]} 32. Kh2 {[%clk 0:00:11]}  Rxd8 {[%clk 0:00:29]} 33. f7+ {[%clk 0:00:12]}  Kxf7 {[%clk 0:00:29]} 34. Qxd8 {[%clk 0:00:12]}  Qe5+ {[%clk 0:00:28]} 35. Kg1 {[%clk 0:00:12]}  Bb7 {[%clk 0:00:27]} 36. Qc7+ {[%clk 0:00:02]}  Qxc7 {[%clk 0:00:27]} 0-1


[Site "https://www.chess.com"]

[Event "Titled Tuesday Blitz June 20 Early 2023"]
[White "Suarez Uriel, Adrian"]
[Black "Trifan, Andrei Ioan"]
[WhiteFideId "22230874"]
[BlackFideId "12967068"]
[WhiteElo "2331"]
[BlackElo "2208"]
[Result "1-0"]
[Round "3"]
[TimeControl "180+2"]
[Date "2023.06.20"]
[WhiteClock "0:00:09"]
[BlackClock "0:00:04"]
[Board "141"]

1. d4 {[%clk 0:03:00]}  Nf6 {[%clk 0:02:55]} 2. c4 {[%clk 0:02:59]}  e6 {[%clk 0:02:53]} 3. Nc3 {[%clk 0:02:59]}  d5 {[%clk 0:02:49]} 4. Nf3 {[%clk 0:02:55]}  b6 {[%clk 0:02:47]} 5. cxd5 {[%clk 0:02:54]}  Nxd5 {[%clk 0:02:47]} 6. Nxd5 {[%clk 0:02:49]}  Qxd5 {[%clk 0:02:40]} 7. e3 {[%clk 0:02:49]}  Bb4+ {[%clk 0:02:37]} 8. Bd2 {[%clk 0:02:49]}  Be7 {[%clk 0:02:36]} 9. Rc1 {[%clk 0:02:45]}  Qd8 {[%clk 0:02:33]} 10. Qc2 {[%clk 0:02:37]}  c6 {[%clk 0:02:29]} 11. Ne5 {[%clk 0:02:36]}  O-O {[%clk 0:02:23]} 12. Bd3 {[%clk 0:02:31]}  h6 {[%clk 0:02:20]} 13. Be4 {[%clk 0:02:26]}  Ba6 {[%clk 0:02:09]} 14. b4 {[%clk 0:02:03]}  f5 {[%clk 0:01:54]} 15. Bf3 {[%clk 0:02:02]}  f4 {[%clk 0:01:54]} 16. a4 {[%clk 0:01:59]}  fxe3 {[%clk 0:01:52]} 17. fxe3 {[%clk 0:02:00]}  Bh4+ {[%clk 0:01:47]} 18. g3 {[%clk 0:01:52]}  Bf6 {[%clk 0:01:37]} 19. Ng6 {[%clk 0:01:53]}  Rf7 {[%clk 0:01:33]} 20. b5 {[%clk 0:01:53]}  Bb7 {[%clk 0:01:26]} 21. O-O {[%clk 0:01:49]}  cxb5 {[%clk 0:01:26]} 22. Bxb7 {[%clk 0:01:46]}  Rxb7 {[%clk 0:01:27]} 23. axb5 {[%clk 0:01:46]}  a6 {[%clk 0:01:17]} 24. Qe4 {[%clk 0:01:46]}  Qd7 {[%clk 0:01:15]} 25. Rc6 {[%clk 0:01:02]}  axb5 {[%clk 0:01:02]} 26. Rxe6 {[%clk 0:01:02]}  Na6 {[%clk 0:00:58]} 27. Rxb6 {[%clk 0:00:44]}  Rab8 {[%clk 0:00:46]} 28. Rxa6 {[%clk 0:00:43]}  b4 {[%clk 0:00:44]} 29. Ne5 {[%clk 0:00:36]}  Qb5 {[%clk 0:00:41]} 30. Raxf6 {[%clk 0:00:32]}  gxf6 {[%clk 0:00:38]} 31. Qg6+ {[%clk 0:00:32]}  Rg7 {[%clk 0:00:34]} 32. Qxf6 {[%clk 0:00:32]}  Qe2 {[%clk 0:00:22]} 33. Bc1 {[%clk 0:00:28]}  b3 {[%clk 0:00:20]} 34. Qe6+ {[%clk 0:00:28]}  Kh7 {[%clk 0:00:20]} 35. Nd7 {[%clk 0:00:20]}  b2 {[%clk 0:00:17]} 36. Qe4+ {[%clk 0:00:12]}  Kg8 {[%clk 0:00:14]} 37. Nxb8 {[%clk 0:00:13]}  Re7 {[%clk 0:00:09]} 38. Qg6+ {[%clk 0:00:11]}  Rg7 {[%clk 0:00:09]} 39. Qe6+ {[%clk 0:00:10]}  Kh7 {[%clk 0:00:09]} 40. Bxb2 {[%clk 0:00:10]}  Qxb2 {[%clk 0:00:10]} 41. Nc6 {[%clk 0:00:11]}  Qb6 {[%clk 0:00:09]} 42. Qe4+ {[%clk 0:00:11]}  Kg8 {[%clk 0:00:07]} 43. Ne5 {[%clk 0:00:11]}  Qe6 {[%clk 0:00:07]} 44. Rb1 {[%clk 0:00:11]}  Qd6 {[%clk 0:00:06]} 45. Ra1 {[%clk 0:00:09]}  Re7 {[%clk 0:00:04]} 46. Ra8+ {[%clk 0:00:09]}  Kg7 {[%clk 0:00:05]} 47. Qg4+ {[%clk 0:00:10]}  Kf6 {[%clk 0:00:04]} 48. Qg6# {[%clk 0:00:09]} 1-0


[Site "https://www.chess.com"]

[Event "Titled Tuesday Blitz June 20 Early 2023"]
[White "Pham, Khoi"]
[Black "FREDERICKtheMATE"]
[WhiteFideId "1054988"]
[WhiteElo "2553"]
[BlackElo "2392"]
[Result "0-1"]
[Round "3"]
[TimeControl "180+2"]
[Date "2023.06.20"]
[WhiteClock "0:00:20"]
[BlackClock "0:00:07"]
[Board "142"]

1. d4 {[%clk 0:02:59]}  c5 {[%clk 0:03:00]} 2. d5 {[%clk 0:02:59]}  g6 {[%clk 0:03:00]} 3. e4 {[%clk 0:02:58]}  Bg7 {[%clk 0:03:00]} 4. Nf3 {[%clk 0:02:58]}  d6 {[%clk 0:02:59]} 5. h3 {[%clk 0:02:58]}  Nf6 {[%clk 0:02:59]} 6. Nc3 {[%clk 0:02:58]}  O-O {[%clk 0:02:59]} 7. Be2 {[%clk 0:02:57]}  Bd7 {[%clk 0:03:00]} 8. a4 {[%clk 0:02:54]}  a6 {[%clk 0:02:57]} 9. O-O {[%clk 0:02:54]}  e5 {[%clk 0:02:53]} 10. Nd2 {[%clk 0:02:53]}  Ne8 {[%clk 0:02:49]} 11. Nc4 {[%clk 0:02:50]}  f5 {[%clk 0:02:48]} 12. a5 {[%clk 0:02:47]}  f4 {[%clk 0:02:43]} 13. Nb6 {[%clk 0:02:38]}  Ra7 {[%clk 0:02:43]} 14. Bg4 {[%clk 0:02:30]}  Bxg4 {[%clk 0:02:43]} 15. Qxg4 {[%clk 0:02:31]}  Nc7 {[%clk 0:02:42]} 16. Nc4 {[%clk 0:02:10]}  Nd7 {[%clk 0:02:36]} 17. Na4 {[%clk 0:01:54]}  Nf6 {[%clk 0:02:33]} 18. Qe2 {[%clk 0:01:52]}  Nb5 {[%clk 0:02:27]} 19. c3 {[%clk 0:01:50]}  g5 {[%clk 0:02:21]} 20. f3 {[%clk 0:01:50]}  Nh5 {[%clk 0:02:19]} 21. Qf2 {[%clk 0:01:45]}  Ng3 {[%clk 0:02:17]} 22. Rd1 {[%clk 0:01:45]}  Ra8 {[%clk 0:02:16]} 23. Nab6 {[%clk 0:01:45]}  Rb8 {[%clk 0:02:15]} 24. Bd2 {[%clk 0:01:41]}  h5 {[%clk 0:01:55]} 25. Be1 {[%clk 0:01:34]}  g4 {[%clk 0:01:55]} 26. Qc2 {[%clk 0:00:40]}  gxf3 {[%clk 0:01:43]} 27. gxf3 {[%clk 0:00:39]}  Rf6 {[%clk 0:01:43]} 28. Bxg3 {[%clk 0:00:34]}  fxg3 {[%clk 0:01:43]} 29. Kg2 {[%clk 0:00:34]}  h4 {[%clk 0:01:34]} 30. Ne3 {[%clk 0:00:34]}  Rf7 {[%clk 0:01:11]} 31. Nf5 {[%clk 0:00:33]}  Qf6 {[%clk 0:01:11]} 32. Nc4 {[%clk 0:00:31]}  Bh6 {[%clk 0:01:06]} 33. Qe2 {[%clk 0:00:26]}  Bf4 {[%clk 0:01:03]} 34. Nce3 {[%clk 0:00:26]}  Qg5 {[%clk 0:00:57]} 35. Ng4 {[%clk 0:00:25]}  Kh7 {[%clk 0:00:55]} 36. Qd3 {[%clk 0:00:23]}  Rd8 {[%clk 0:00:49]} 37. b4 {[%clk 0:00:22]}  cxb4 {[%clk 0:00:45]} 38. cxb4 {[%clk 0:00:23]}  Rc7 {[%clk 0:00:43]} 39. Ra2 {[%clk 0:00:21]}  Rc3 {[%clk 0:00:42]} 40. Qe2 {[%clk 0:00:19]}  Rdc8 {[%clk 0:00:42]} 41. Rd3 {[%clk 0:00:17]}  R3c7 {[%clk 0:00:30]} 42. Rd1 {[%clk 0:00:16]}  Nc3 {[%clk 0:00:27]} 43. Qc2 {[%clk 0:00:16]}  Nxa2 {[%clk 0:00:27]} 44. Qxa2 {[%clk 0:00:16]}  Rc2+ {[%clk 0:00:27]} 45. Kg1 {[%clk 0:00:16]}  Rxa2 {[%clk 0:00:26]} 46. Nxd6 {[%clk 0:00:17]}  Rcc2 {[%clk 0:00:26]} 47. Nf5 {[%clk 0:00:17]}  Rg2+ {[%clk 0:00:19]} 48. Kh1 {[%clk 0:00:17]}  Rh2+ {[%clk 0:00:18]} 49. Kg1 {[%clk 0:00:18]}  Rag2+ {[%clk 0:00:16]} 50. Kf1 {[%clk 0:00:19]}  Rf2+ {[%clk 0:00:16]} 51. Kg1 {[%clk 0:00:19]}  Rxf3 {[%clk 0:00:15]} 52. d6 {[%clk 0:00:18]}  Qd8 {[%clk 0:00:11]} 53. d7 {[%clk 0:00:19]}  Rd2 {[%clk 0:00:08]} 54. Rxd2 {[%clk 0:00:19]}  Bxd2 {[%clk 0:00:09]} 55. Nxe5 {[%clk 0:00:18]}  Rxf5 {[%clk 0:00:06]} 56. exf5 {[%clk 0:00:19]}  Bc3 {[%clk 0:00:06]} 57. Ng6 {[%clk 0:00:18]}  Kg7 {[%clk 0:00:05]} 58. Nf4 {[%clk 0:00:18]}  Qxd7 {[%clk 0:00:05]} 59. Ne6+ {[%clk 0:00:18]}  Kf6 {[%clk 0:00:05]} 60. Kg2 {[%clk 0:00:19]}  Qd5+ {[%clk 0:00:05]} 61. Kg1 {[%clk 0:00:19]}  Qxf5 {[%clk 0:00:06]} 62. Nf4 {[%clk 0:00:18]}  Qxf4 {[%clk 0:00:06]} 63. b5 {[%clk 0:00:19]}  Qf2+ {[%clk 0:00:06]} 64. Kh1 {[%clk 0:00:20]}  Qh2# {[%clk 0:00:07]} 0-1


[Site "https://www.chess.com"]